[Event "47th GRE-chT 2019"]
[Site "Patra"]
[Date "2019.07.05"]
[Round "6.8"]
[White "Georgakopoulos, Nikolaos K."]
[Black "Makris, Spyridon-Dionysios"]
[Result "1/2-1/2"]
[ECO "C77"]
[WhiteElo "2032"]
[BlackElo "1884"]
[Annotator "NA"]
[PlyCount "155"]
[EventDate "2019.07.02"]
[EventCountry "GRE"]
[SourceTitle "playchess.com"]
[Source "ChessBase"]
[SourceQuality "1"]
[TimeControl "5400+30"]

1. e4 {[%emt 0:00:00]} e5 {[%emt 0:00:00]} 2. Nf3 {[%emt 0:00:00]} Nc6 {[%emt 0:00:00]} 3. Bb5 {[%emt 0:00:00]} a6 {[%emt 0:00:00]} 4. Ba4 {[%emt 0:00:00]} Nf6 {[%emt 0:00:00]} 5. d3 {[%emt 0:00:00]} d6 {[%emt 0:00:07]} 6. c3 {[%emt 0:00:40]} b5 {[%emt 0:00:34]} 7. Bc2 {[%emt 0:00:18]} Nb8 {[%emt 0:02:34]} 8. O-O {[%emt 0:03:09]} Nbd7 {[%emt 0:00:41]} 9. d4 {[%emt 0:03:29]} Be7 {[%emt 0:03:52]} 10. Nbd2 {[%emt 0:02:25]} c5 {[%emt 0:01:03]} 11. Re1 {[%emt 0:02:00]} O-O {[%emt 0:00:21]} 12. Nf1 {[%emt 0:02:12]} Re8 {[%emt 0:04:30]} 13. Ng3 {[%emt 0:06:06]} g6 {[%emt 0:00:21]} 14. h3 {[%emt 0:07:40]} Qc7 {[%emt 0:02:47]} 15. Be3 {[%emt 0:03:37]} Bf8 {[%emt 0:01:11]} 16. d5 {[%emt 0:06:09]} Nb6 {[%emt 0:08:33]} 17. Nh2 {[%emt 0:11:01]} Bg7 {[%emt 0:06:42]} 18. Ng4 {[%emt 0:08:14]} Nxg4 {[%emt 0:01:49]} 19. hxg4 {[%emt 0:00:06]} Bd7 {[%emt 0:09:45]} 20. Nf1 {[%emt 0:07:35]} a5 {[%emt 0:04:48]} 21. Nd2 {[%emt 0:01:02]} c4 {[%emt 0:09:06]} 22. g3 {[%emt 0:04:03]} Rab8 {[%emt 0:05:02]} 23. Kg2 {[%emt 0:00:58]} h6 {[%emt 0:06:10]} 24. Rh1 {[%emt 0:01:05]} g5 {[%emt 0:00:08]} 25. Qe2 {[%emt 0:02:31]} f6 {[%emt 0:00:59]} 26. Rh5 {[%emt 0:02:40]} Red8 {[%emt 0:00:51]} 27. Rah1 {[%emt 0:00:33]} Nc8 {[%emt 0:01:13]} 28. Nf1 {[%emt 0:03:07]} Ne7 {[%emt 0:02:10]} 29. Bd2 {[%emt 0:01:54]} Be8 {[%emt 0:00:55]} 30. R5h2 {[%emt 0:00:27]} a4 {[%emt 0:00:37]} 31. a3 {[%emt 0:00:28]} Bf7 {[%emt 0:01:47]} 32. Ne3 {[%emt 0:00:29]} Kf8 {[%emt 0:00:48]} 33. Qf3 {[%emt 0:01:11]} Bg6 {[%emt 0:01:48]} 34. Rxh6 {[%emt 0:03:40]} Kf7 {[%emt 0:04:46]} 35. R6h2 {[%emt 0:01:35]} Rh8 {[%emt 0:00:10]} 36. Rxh8 {[%emt 0:00:22]} Rxh8 {[%emt 0:00:03]} 37. Rxh8 {[%emt 0:00:28]} Bxh8 {[%emt 0:00:03]} 38. Nf5 {[%emt 0:00:59]} Ke8 {[%emt 0:02:40]} 39. Kg1 {[%emt 0:02:01]} Nxf5 {[%emt 0:03:13]} 40. gxf5 {[%emt 0:00:00]} Bf7 {[%emt 0:00:00]} 41. Qh1 {[%emt 0:00:00]} Bg7 {[%emt 0:00:00]} 42. Bd1 {[%emt 0:00:00]} Qe7 {[%emt 0:00:00]} 43. Bh5 {[%emt 0:00:00]} Bxh5 {[%emt 0:00:00]} 44. Qxh5+ {[%emt 0:00:00]} Qf7 {[%emt 0:00:00]} 45. Qxf7+ {[%emt 0:00:00]} Kxf7 {[%emt 0:00:00]} 46. Kg2 {[%emt 0:00:00]} Bf8 {[%emt 0:00:00]} 47. Be3 {[%emt 0:00:00]} Be7 {[%emt 0:00:00]} 48. Bb6 {[%emt 0:00:00]} Bf8 {[%emt 0:00:00]} 49. Kf3 {[%emt 0:00:00]} Be7 {[%emt 0:00:00]} 50. Kg4 {[%emt 0:00:00]} Bf8 {[%emt 0:00:00]} 51. Bd8 {[%emt 0:00:00]} Bg7 {[%emt 0:00:00]} 52. f3 {[%emt 0:00:00]} Bf8 {[%emt 0:00:00]} 53. Kh5 {[%emt 0:00:00]} Bg7 {[%emt 0:00:00]} 54. Bb6 {[%emt 0:00:00]} Bf8 {[%emt 0:00:00]} 55. Be3 {[%emt 0:00:00]} Be7 {[%emt 0:00:00]} 56. f4 {[%emt 0:00:00]} gxf4 {[%emt 0:00:00]} 57. gxf4 {[%emt 0:00:00]} exf4 {[%emt 0:00:00]} 58. Bxf4 {[%emt 0:00:00]} Bf8 {[%emt 0:00:00]} 59. Kg4 {[%emt 0:00:00]} Be7 {[%emt 0:00:00]} 60. Kf3 {[%emt 0:00:00]} Kg8 {[%emt 0:00:00]} 61. Ke3 {[%emt 0:00:00]} Kf8 {[%emt 0:00:00]} 62. Kd4 {[%emt 0:00:00]} Kf7 {[%emt 0:00:00]} 63. Ke3 {[%emt 0:00:00]} Bf8 {[%emt 0:00:00]} 64. Kd2 {[%emt 0:00:14]} Be7 {[%emt 0:00:00]} 65. Kc2 {[%emt 0:00:44]} Bf8 {[%emt 0:00:00]} 66. Kb1 {[%emt 0:04:26]} Be7 {[%emt 0:00:00]} 67. Kc2 {[%emt 0:09:45]} Kg8 {[%emt 0:00:00]} 68. Kd2 {[%emt 0:00:28]} Kf7 {[%emt 0:00:00]} 69. Ke2 {[%emt 0:00:06]} Kg7 {[%emt 0:00:00]} 70. Kf3 {[%emt 0:00:09]} Kf7 {[%emt 0:00:00]} 71. Be3 {[%emt 0:00:12]} Bd8 {[%emt 0:00:00]} 72. Kg4 {[%emt 0:00:25]} Be7 {[%emt 0:00:00]} 73. Bb6 {[%emt 0:00:29]} Kg7 {[%emt 0:00:00]} 74. Kh5 {[%emt 0:00:24]} Kf7 {[%emt 0:00:00]} 75. Bc7 {[%emt 0:01:13]} Kg7 {[%emt 0:00:00]} 76. Bb6 {[%emt 0:01:07]} Kh7 {[%emt 0:00:00]} 77. Be3 {[%emt 0:01:15]} Kg7 {[%emt 0:00:00]} 78. Bf4 {[%emt 0:01:13]} 1/2-1/2

[Event "47th GRE-chT 2019"]
[Site "Patra"]
[Date "2019.07.05"]
[Round "6.9"]
[White "Gavriil, Odysseas-Panagiotis"]
[Black "Chatzieleftheriou, Andreas"]
[Result "1-0"]
[ECO "A06"]
[WhiteElo "2038"]
[BlackElo "2208"]
[Annotator "NA"]
[PlyCount "121"]
[EventDate "2019.07.02"]
[EventCountry "GRE"]
[SourceTitle "playchess.com"]
[Source "ChessBase"]
[SourceQuality "1"]
[TimeControl "5400+30"]

1. Nf3 {[%emt 0:00:00]} d5 {[%emt 0:00:00]} 2. b3 {[%emt 0:00:00]} c5 {[%emt 0:02:29]} 3. e3 {[%emt 0:00:00]} Nc6 {[%emt 0:00:32]} 4. Bb5 {[%emt 0:00:00]} Nf6 {[%emt 0:01:02]} 5. Bb2 {[%emt 0:00:18]} Bg4 {[%emt 0:01:38]} 6. h3 {[%emt 0:00:44]} Bxf3 {[%emt 0:00:32]} 7. Bxc6+ {[%emt 0:00:36]} bxc6 {[%emt 0:00:06]} 8. Qxf3 {[%emt 0:00:02]} Qc7 {[%emt 0:02:16]} 9. O-O {[%emt 0:00:52]} e5 {[%emt 0:02:00]} 10. d3 {[%emt 0:00:45]} Bd6 {[%emt 0:01:23]} 11. c4 {[%emt 0:02:44]} O-O {[%emt 0:02:35]} 12. Nc3 {[%emt 0:00:54]} Qb7 {[%emt 0:01:58]} 13. e4 {[%emt 0:01:33]} d4 {[%emt 0:01:08]} 14. Na4 {[%emt 0:00:35]} Qe7 {[%emt 0:01:53]} 15. Bc1 {[%emt 0:01:35]} Ne8 {[%emt 0:01:56]} 16. Qg4 {[%emt 0:01:57]} Nc7 {[%emt 0:01:05]} 17. f4 {[%emt 0:03:17]} exf4 {[%emt 0:01:09]} 18. Bxf4 {[%emt 0:00:21]} Ne6 {[%emt 0:01:35]} 19. Bxd6 {[%emt 0:04:23]} Qxd6 {[%emt 0:00:11]} 20. Rf5 {[%emt 0:00:08]} Rae8 {[%emt 0:19:14]} 21. Raf1 {[%emt 0:00:18]} Re7 {[%emt 0:00:55]} 22. h4 {[%emt 0:03:42]} Kh8 {[%emt 0:07:28]} 23. h5 {[%emt 0:03:26]} h6 {[%emt 0:06:02]} 24. Qh4 {[%emt 0:00:47]} Rb7 {[%emt 0:04:30]} 25. Qh2 {[%emt 0:04:42]} Qe7 {[%emt 0:00:33]} 26. Qe5 {[%emt 0:00:17]} f6 {[%emt 0:02:23]} 27. Qg3 {[%emt 0:00:02]} Rbb8 {[%emt 0:03:10]} 28. Qg6 {[%emt 0:00:18]} Rfe8 {[%emt 0:05:13]} 29. e5 {[%emt 0:16:21]} Nf8 {[%emt 0:00:34]} 30. Qg4 {[%emt 0:00:06]} Nd7 {[%emt 0:00:29]} 31. exf6 {[%emt 0:05:54]} Nxf6 {[%emt 0:00:05]} 32. Qg3 {[%emt 0:01:06]} Qe3+ {[%emt 0:01:54]} 33. Qxe3 {[%emt 0:12:26]} Rxe3 {[%emt 0:00:37]} 34. Nxc5 {[%emt 0:00:22]} Rbe8 {[%emt 0:00:25]} 35. a4 {[%emt 0:05:12]} Re2 {[%emt 0:01:49]} 36. b4 {[%emt 0:02:13]} Kh7 {[%emt 0:02:39]} 37. R5f2 {[%emt 0:10:00]} Rxf2 {[%emt 0:06:20]} 38. Rxf2 {[%emt 0:02:03]} Ng4 {[%emt 0:00:23]} 39. Rf1 {[%emt 0:09:35]} Re2 {[%emt 0:00:13]} 40. Nb3 {[%emt 0:00:00]} Ne3 {[%emt 0:00:00]} 41. Nxd4 {[%emt 0:00:00]} Rxg2+ {[%emt 0:00:00]} 42. Kh1 {[%emt 0:00:00]} Rg4 {[%emt 0:00:00]} 43. Rf3 {[%emt 0:00:00]} Nxc4 {[%emt 0:00:00]} 44. Nxc6 {[%emt 0:00:00]} Nb2 {[%emt 0:00:00]} 45. a5 {[%emt 0:00:00]} a6 {[%emt 0:00:00]} 46. Kh2 {[%emt 0:00:00]} Rg5 {[%emt 0:00:00]} 47. Nb8 {[%emt 0:00:00]} Rxh5+ {[%emt 0:00:00]} 48. Rh3 {[%emt 0:00:00]} Rb5 {[%emt 0:00:00]} 49. Nxa6 {[%emt 0:00:00]} g5 {[%emt 0:00:00]} 50. d4 {[%emt 0:00:00]} Nc4 {[%emt 0:00:00]} 51. Rc3 {[%emt 0:00:00]} Nxa5 {[%emt 0:00:00]} 52. Rc5 {[%emt 0:00:00]} Rb6 {[%emt 0:00:00]} 53. Rxa5 {[%emt 0:00:00]} Rd6 {[%emt 0:00:00]} 54. d5 {[%emt 0:00:00]} Kg6 {[%emt 0:00:00]} 55. Rc5 {[%emt 0:03:30]} Kf5 {[%emt 0:00:00]} 56. Nc7 {[%emt 0:00:43]} Ke5 {[%emt 0:00:00]} 57. b5 {[%emt 0:00:23]} Rd8 {[%emt 0:00:00]} 58. Rc6 {[%emt 0:01:12]} h5 {[%emt 0:00:00]} 59. b6 {[%emt 0:02:33]} h4 {[%emt 0:00:00]} 60. Re6+ {[%emt 0:00:50]} Kf4 {[%emt 0:00:00]} 61. Re8 {[%emt 0:01:22]} 1-0

[Event "47th GRE-chT 2019"]
[Site "Patra"]
[Date "2019.07.05"]
[Round "6.9"]
[White "Fragkos, Vasileios"]
[Black "Patrelakis, Evaggelos"]
[Result "0-1"]
[ECO "B54"]
[WhiteElo "1901"]
[BlackElo "2209"]
[Annotator "NA"]
[PlyCount "134"]
[EventDate "2019.07.02"]
[EventCountry "GRE"]
[SourceTitle "playchess.com"]
[Source "ChessBase"]
[SourceQuality "1"]
[TimeControl "5400+30"]

1. e4 {[%emt 0:00:00]} c5 {[%emt 0:00:00]} 2. Nf3 {[%emt 0:00:00]} d6 {[%emt 0:00:00]} 3. d4 {[%emt 0:00:00]} cxd4 {[%emt 0:00:00]} 4. Nxd4 {[%emt 0:00:00]} Nf6 {[%emt 0:00:02]} 5. f3 {[%emt 0:00:00]} e6 {[%emt 0:00:19]} 6. c4 {[%emt 0:00:00]} a6 {[%emt 0:00:16]} 7. Nc3 {[%emt 0:00:00]} Be7 {[%emt 0:00:12]} 8. Be3 {[%emt 0:00:03]} Nbd7 {[%emt 0:00:19]} 9. Be2 {[%emt 0:00:08]} Qc7 {[%emt 0:00:05]} 10. Qd2 {[%emt 0:00:19]} b6 {[%emt 0:00:13]} 11. O-O {[%emt 0:00:13]} Bb7 {[%emt 0:00:10]} 12. Rac1 {[%emt 0:00:53]} Rc8 {[%emt 0:00:09]} 13. Rfd1 {[%emt 0:00:09]} O-O {[%emt 0:00:14]} 14. Bf1 {[%emt 0:01:46]} Qb8 {[%emt 0:00:25]} 15. Kh1 {[%emt 0:01:23]} Bd8 {[%emt 0:00:26]} 16. Bg1 {[%emt 0:00:26]} Bc7 {[%emt 0:00:18]} 17. Nc2 {[%emt 0:01:21]} Rfd8 {[%emt 0:05:03]} 18. Ne3 {[%emt 0:00:59]} Ne5 {[%emt 0:01:21]} 19. b3 {[%emt 0:01:37]} Kh8 {[%emt 0:00:46]} 20. Rb1 {[%emt 0:01:28]} Rg8 {[%emt 0:04:23]} 21. Qe2 {[%emt 0:10:57]} Qa8 {[%emt 0:01:43]} 22. Re1 {[%emt 0:05:08]} Rcd8 {[%emt 0:05:52]} 23. Rbd1 {[%emt 0:03:37]} Rge8 {[%emt 0:04:39]} 24. Qc2 {[%emt 0:03:41]} g5 {[%emt 0:05:09]} 25. Qf2 {[%emt 0:10:23]} Rg8 {[%emt 0:05:02]} 26. h3 {[%emt 0:04:17]} Ng6 {[%emt 0:07:46]} 27. Qb2 {[%emt 0:01:11]} Ne5 {[%emt 0:00:49]} 28. Qf2 {[%emt 0:00:14]} Rg7 {[%emt 0:02:25]} 29. Bh2 {[%emt 0:05:30]} Ng6 {[%emt 0:04:48]} 30. b4 {[%emt 0:26:32]} Qb8 {[%emt 0:01:29]} 31. Qb2 {[%emt 0:01:17]} Nd7 {[%emt 0:06:51]} 32. a4 {[%emt 0:01:54]} Ba8 {[%emt 0:02:52]} 33. Rd2 {[%emt 0:00:43]} h5 {[%emt 0:01:39]} 34. Ncd5 {[%emt 0:03:04]} exd5 {[%emt 0:04:26]} 35. Nf5 {[%emt 0:00:05]} Nde5 {[%emt 0:01:36]} 36. Nxg7 {[%emt 0:00:15]} Kxg7 {[%emt 0:00:02]} 37. cxd5 {[%emt 0:00:10]} Bb7 {[%emt 0:02:25]} 38. Rc2 {[%emt 0:00:16]} h4 {[%emt 0:01:18]} 39. Rec1 {[%emt 0:00:12]} Rd7 {[%emt 0:00:35]} 40. Bg1 {[%emt 0:00:00]} f6 {[%emt 0:00:00]} 41. Rc3 {[%emt 0:00:00]} Qd8 {[%emt 0:00:00]} 42. Bd4 {[%emt 0:00:00]} Nf4 {[%emt 0:00:00]} 43. Bxe5 {[%emt 0:00:00]} dxe5 {[%emt 0:00:00]} 44. Rb3 {[%emt 0:00:00]} Bd6 {[%emt 0:00:00]} 45. Kg1 {[%emt 0:00:00]} Rf7 {[%emt 0:00:00]} 46. Qb1 {[%emt 0:00:00]} Qe8 {[%emt 0:00:00]} 47. Qa2 {[%emt 0:00:00]} Qd7 {[%emt 0:00:00]} 48. a5 {[%emt 0:00:00]} b5 {[%emt 0:00:00]} 49. Be2 {[%emt 0:00:00]} Kh6 {[%emt 0:00:00]} 50. Bd1 {[%emt 0:00:00]} Qe7 {[%emt 0:00:00]} 51. Rcb1 {[%emt 0:00:00]} Rg7 {[%emt 0:00:00]} 52. Qc2 {[%emt 0:00:00]} f5 {[%emt 0:00:00]} 53. Kh1 {[%emt 0:00:00]} Rf7 {[%emt 0:01:42]} 54. Kh2 {[%emt 0:00:00]} Nh5 {[%emt 0:01:05]} 55. Be2 {[%emt 0:00:00]} Qf6 {[%emt 0:01:36]} 56. Bd1 {[%emt 0:01:55]} Bb8 {[%emt 0:02:50]} 57. Qd2 {[%emt 0:02:31]} Ng3 {[%emt 0:02:16]} 58. Qe1 {[%emt 0:03:34]} fxe4 {[%emt 0:01:45]} 59. fxe4 {[%emt 0:00:15]} Nf1+ {[%emt 0:00:06]} 60. Kh1 {[%emt 0:00:27]} Qf4 {[%emt 0:00:55]} 61. g3 {[%emt 0:00:14]} Nxg3+ {[%emt 0:00:21]} 62. Kg2 {[%emt 0:00:08]} Qxe4+ {[%emt 0:00:38]} 63. Qxe4 {[%emt 0:00:12]} Nxe4 {[%emt 0:00:02]} 64. Rd3 {[%emt 0:00:41]} Rf2+ {[%emt 0:00:39]} 65. Kh1 {[%emt 0:00:29]} Ng3+ {[%emt 0:00:26]} 66. Kg1 {[%emt 0:00:37]} Ba7 {[%emt 0:00:00]} 67. d6 {[%emt 0:02:16]} Rg2# {[%emt 0:00:00]} 0-1

[Event "47th GRE-chT 2019"]
[Site "Patra"]
[Date "2019.07.05"]
[Round "6.10"]
[White "Papaioannou, Dimitrios"]
[Black "Karamichos, Michail"]
[Result "1/2-1/2"]
[ECO "B13"]
[WhiteElo "1629"]
[BlackElo "1559"]
[Annotator "NA"]
[PlyCount "64"]
[EventDate "2019.07.02"]
[EventCountry "GRE"]
[SourceTitle "playchess.com"]
[Source "ChessBase"]
[SourceQuality "1"]
[TimeControl "5400+30"]

1. e4 {[%emt 0:00:00]} c6 {[%emt 0:00:00]} 2. d4 {[%emt 0:00:00]} d5 {[%emt 0:00:00]} 3. exd5 {[%emt 0:00:00]} cxd5 {[%emt 0:00:00]} 4. Bd3 {[%emt 0:00:19]} Nc6 {[%emt 0:00:00]} 5. c3 {[%emt 0:00:10]} Qc7 {[%emt 0:00:49]} 6. Ne2 {[%emt 0:06:37]} Bg4 {[%emt 0:02:00]} 7. Qc2 {[%emt 0:05:57]} Nf6 {[%emt 0:02:11]} 8. O-O {[%emt 0:03:47]} e6 {[%emt 0:01:40]} 9. Bf4 {[%emt 0:01:07]} Bd6 {[%emt 0:01:07]} 10. Bxd6 {[%emt 0:00:09]} Qxd6 {[%emt 0:01:54]} 11. h3 {[%emt 0:00:15]} Bh5 {[%emt 0:02:59]} 12. Ng3 {[%emt 0:00:34]} Bg6 {[%emt 0:02:31]} 13. Nd2 {[%emt 0:01:13]} Rc8 {[%emt 0:02:06]} 14. Nf3 {[%emt 0:03:56]} O-O {[%emt 0:02:48]} 15. Bxg6 {[%emt 0:00:48]} hxg6 {[%emt 0:03:04]} 16. Qe2 {[%emt 0:01:54]} a6 {[%emt 0:02:51]} 17. Ne5 {[%emt 0:03:58]} Na5 {[%emt 0:02:49]} 18. Rac1 {[%emt 0:01:01]} b5 {[%emt 0:01:00]} 19. b3 {[%emt 0:01:23]} Rc7 {[%emt 0:03:58]} 20. Rc2 {[%emt 0:00:13]} Rfc8 {[%emt 0:00:17]} 21. Rfc1 {[%emt 0:17:21]} Qb6 {[%emt 0:03:08]} 22. Qd3 {[%emt 0:04:29]} Nc6 {[%emt 0:02:17]} 23. Nxc6 {[%emt 0:00:45]} Rxc6 {[%emt 0:02:59]} 24. Nf1 {[%emt 0:05:39]} Ne8 {[%emt 0:00:30]} 25. Nd2 {[%emt 0:00:49]} Nd6 {[%emt 0:00:25]} 26. Nf3 {[%emt 0:03:41]} R6c7 {[%emt 0:00:52]} 27. Ne5 {[%emt 0:00:48]} Nb7 {[%emt 0:02:12]} 28. Kh2 {[%emt 0:01:01]} Nd8 {[%emt 0:02:46]} 29. g3 {[%emt 0:00:14]} Nc6 {[%emt 0:01:21]} 30. Nxc6 {[%emt 0:00:09]} Rxc6 {[%emt 0:00:51]} 31. Kg1 {[%emt 0:00:29]} R6c7 {[%emt 0:01:28]} 32. Kh2 {[%emt 0:00:25]} Rc6 {[%emt 0:02:02]} 1/2-1/2

[Event "47th GRE-chT 2019"]
[Site "Patra"]
[Date "2019.07.05"]
[Round "6.10"]
[White "Antonioudakis, Georgios"]
[Black "Mourelatos, Spyridon"]
[Result "1-0"]
[ECO "C50"]
[WhiteElo "1385"]
[BlackElo "1626"]
[Annotator "NA"]
[PlyCount "119"]
[EventDate "2019.07.02"]
[EventCountry "GRE"]
[SourceTitle "playchess.com"]
[Source "ChessBase"]
[SourceQuality "1"]
[TimeControl "5400+30"]

1. e4 {[%emt 0:00:00]} e5 {[%emt 0:00:00]} 2. Nf3 {[%emt 0:00:00]} Nc6 {[%emt 0:00:00]} 3. Bc4 {[%emt 0:00:00]} Bc5 {[%emt 0:00:00]} 4. d3 {[%emt 0:00:00]} d6 {[%emt 0:00:08]} 5. h3 {[%emt 0:00:00]} Nge7 {[%emt 0:00:23]} 6. c3 {[%emt 0:00:29]} O-O {[%emt 0:00:18]} 7. O-O {[%emt 0:00:24]} Bb6 {[%emt 0:05:06]} 8. d4 {[%emt 0:01:47]} exd4 {[%emt 0:01:14]} 9. cxd4 {[%emt 0:00:03]} d5 {[%emt 0:03:05]} 10. exd5 {[%emt 0:00:19]} Nxd5 {[%emt 0:00:20]} 11. Bg5 {[%emt 0:04:19]} Qd6 {[%emt 0:16:51]} 12. Nc3 {[%emt 0:04:53]} Be6 {[%emt 0:00:57]} 13. Ne4 {[%emt 0:09:21]} Qd7 {[%emt 0:01:30]} 14. Ne5 {[%emt 0:10:37]} Qe8 {[%emt 0:13:20]} 15. Nxc6 {[%emt 0:14:43]} Qxc6 {[%emt 0:01:06]} 16. Qb3 {[%emt 0:07:47]} Nf4 {[%emt 0:11:31]} 17. d5 {[%emt 0:10:31]} Bxd5 {[%emt 0:02:35]} 18. Rac1 {[%emt 0:01:06]} Qe6 {[%emt 0:06:52]} 19. Rfe1 {[%emt 0:06:26]} Qf5 {[%emt 0:06:06]} 20. g4 {[%emt 0:05:30]} Bxf2+ {[%emt 0:02:19]} 21. Kf1 {[%emt 0:09:17]} Qg6 {[%emt 0:04:50]} 22. Kxf2 {[%emt 0:00:39]} Nxh3+ {[%emt 0:00:37]} 23. Qxh3 {[%emt 0:00:14]} Bxe4 {[%emt 0:00:46]} 24. Bf4 {[%emt 0:00:50]} Qb6+ {[%emt 0:01:55]} 25. Qe3 {[%emt 0:00:55]} Rfe8 {[%emt 0:05:32]} 26. Qxb6 {[%emt 0:02:01]} cxb6 {[%emt 0:00:22]} 27. Bb5 {[%emt 0:00:13]} Bc6 {[%emt 0:01:55]} 28. Bxc6 {[%emt 0:01:04]} Rxe1 {[%emt 0:00:39]} 29. Kxe1 {[%emt 0:00:12]} bxc6 {[%emt 0:00:15]} 30. Rxc6 {[%emt 0:00:01]} h6 {[%emt 0:00:54]} 31. Rc7 {[%emt 0:00:58]} a6 {[%emt 0:00:37]} 32. Rc6 {[%emt 0:00:55]} b5 {[%emt 0:00:06]} 33. Kf2 {[%emt 0:00:14]} Kh7 {[%emt 0:02:13]} 34. Kf3 {[%emt 0:00:48]} a5 {[%emt 0:01:19]} 35. Rb6 {[%emt 0:00:56]} b4 {[%emt 0:00:22]} 36. Rb5 {[%emt 0:00:06]} Ra7 {[%emt 0:00:27]} 37. Bb8 {[%emt 0:00:53]} Rd7 {[%emt 0:01:08]} 38. Rxa5 {[%emt 0:00:17]} b3 {[%emt 0:01:22]} 39. a4 {[%emt 0:00:49]} Rd3+ {[%emt 0:00:32]} 40. Ke4 {[%emt 0:00:00]} Rd2 {[%emt 0:00:00]} 41. Be5 {[%emt 0:00:00]} Re2+ {[%emt 0:00:00]} 42. Kf3 {[%emt 0:00:00]} Rc2 {[%emt 0:00:00]} 43. Bc3 {[%emt 0:00:00]} Rc1 {[%emt 0:00:00]} 44. Rb5 {[%emt 0:00:00]} Rf1+ {[%emt 0:00:00]} 45. Kg2 {[%emt 0:00:00]} Ra1 {[%emt 0:00:00]} 46. a5 {[%emt 0:00:00]} Ra4 {[%emt 0:00:00]} 47. Kg3 {[%emt 0:00:00]} Kg6 {[%emt 0:00:00]} 48. Rxb3 {[%emt 0:00:00]} f5 {[%emt 0:00:00]} 49. gxf5+ {[%emt 0:00:00]} Kxf5 {[%emt 0:00:00]} 50. Ra3 {[%emt 0:00:00]} Rc4 {[%emt 0:00:00]} 51. a6 {[%emt 0:00:00]} Rc8 {[%emt 0:00:00]} 52. a7 {[%emt 0:00:00]} Ra8 {[%emt 0:00:00]} 53. Ra6 {[%emt 0:00:00]} g5 {[%emt 0:00:00]} 54. b4 {[%emt 0:00:00]} h5 {[%emt 0:00:00]} 55. b5 {[%emt 0:00:00]} h4+ {[%emt 0:00:00]} 56. Kg2 {[%emt 0:00:00]} g4 {[%emt 0:00:00]} 57. b6 {[%emt 0:00:00]} h3+ {[%emt 0:00:00]} 58. Kg3 {[%emt 0:00:00]} Rd8 {[%emt 0:00:00]} 59. a8=Q {[%emt 0:00:00]} Rd3+ {[%emt 0:00:00]} 60. Kh2 {[%emt 0:00:00]} 1-0

[Event "47th GRE-chT 2019"]
[Site "Patra"]
[Date "2019.07.05"]
[Round "6.11"]
[White "Nevednichy, Vladislav"]
[Black "Balogh, Csaba"]
[Result "1/2-1/2"]
[ECO "C50"]
[WhiteElo "2531"]
[BlackElo "2587"]
[Annotator "ChessBase"]
[PlyCount "125"]
[EventDate "2019.07.02"]
[EventCountry "GRE"]
[SourceTitle "playchess.com"]
[Source "ChessBase"]
[SourceQuality "1"]
[TimeControl "5400+30"]

1. e4 {[%emt 0:00:00]} e5 {[%emt 0:00:00]} 2. Nf3 {[%emt 0:00:00]} Nc6 {[%emt 0:00:00]} 3. Bc4 {[%emt 0:00:00]} Bc5 {[%emt 0:00:05]} 4. d3 {[%emt 0:00:04]} Nf6 {[%emt 0:00:25]} 5. O-O {[%emt 0:00:21]} d6 {[%emt 0:00:53]} 6. c3 {[%emt 0:00:11]} a6 {[%emt 0:00:45]} 7. a4 {[%emt 0:00:28]} O-O {[%emt 0:00:23]} 8. Re1 {[%emt 0:10:00]} h6 {[%emt 0:00:55]} 9. h3 {[%emt 0:02:55]} Ba7 {[%emt 0:00:21]} 10. Nbd2 {[%emt 0:00:51]} Re8 {[%emt 0:00:13]} 11. Nf1 {[%emt 0:02:36]} Be6 {[%emt 0:00:39]} 12. Bxe6 {[%emt 0:00:35]} Rxe6 {[%emt 0:00:06]} 13. Ng3 {[%emt 0:06:52]} d5 {[%emt 0:01:42]} 14. Qc2 {[%emt 0:01:48]} Qd7 {[%emt 0:22:06]} 15. b4 {[%emt 0:05:44]} dxe4 {[%emt 0:15:34]} 16. dxe4 {[%emt 0:00:50]} Rd8 {[%emt 0:00:07]} 17. Bb2 {[%emt 0:05:52]} b5 {[%emt 0:12:42]} 18. Red1 {[%emt 0:06:46]} Rd6 {[%emt 0:00:46]} 19. Rxd6 {[%emt 0:00:09]} Qxd6 {[%emt 0:01:06]} 20. axb5 {[%emt 0:01:07]} axb5 {[%emt 0:00:03]} 21. Qe2 {[%emt 0:00:23]} Qd3 {[%emt 0:01:18]} 22. Kf1 {[%emt 0:02:49]} Qxe2+ {[%emt 0:00:45]} 23. Kxe2 {[%emt 0:00:08]} Bb6 {[%emt 0:00:08]} 24. Bc1 {[%emt 0:04:55]} Nd7 {[%emt 0:11:30]} 25. Ne1 {[%emt 0:05:20]} f6 {[%emt 0:03:01]} 26. h4 {[%emt 0:02:30]} Kf7 {[%emt 0:00:05]} 27. h5 {[%emt 0:00:20]} Ne7 {[%emt 0:00:41]} 28. Nd3 {[%emt 0:01:08]} Nc8 {[%emt 0:12:35]} 29. f3 {[%emt 0:09:32]} Nd6 {[%emt 0:01:12]} 30. Nf5 {[%emt 0:03:44]} Nxf5 {[%emt 0:07:04]} 31. exf5 {[%emt 0:00:05]} Ke7 {[%emt 0:00:01]} 32. g4 {[%emt 0:05:06]} Kd6 {[%emt 0:00:34]} 33. Nb2 {[%emt 0:02:51]} Kc6 {[%emt 0:01:57]} 34. Bd2 {[%emt 0:01:15]} Kb7 {[%emt 0:00:23]} 35. Nd3 {[%emt 0:00:22]} Re8 {[%emt 0:03:00]} 36. Ne1 {[%emt 0:07:19]} c5 {[%emt 0:02:16]} 37. Nc2 {[%emt 0:01:45]} cxb4 {[%emt 0:00:54]} 38. Nxb4 {[%emt 0:00:38]} e4 {[%emt 0:01:08]} 39. f4 {[%emt 0:04:06]} e3 {[%emt 0:00:04]} 40. Be1 {[%emt 0:00:00]} Bc5 {[%emt 0:00:00]} 41. Ra5 {[%emt 0:00:00]} Bxb4 {[%emt 0:00:00]} 42. Rxb5+ {[%emt 0:00:00]} Kc6 {[%emt 0:00:00]} 43. Rxb4 {[%emt 0:00:00]} Nb6 {[%emt 0:00:00]} 44. Kf3 {[%emt 0:00:00]} Kc5 {[%emt 0:00:00]} 45. Re4 {[%emt 0:00:00]} Rxe4 {[%emt 0:00:00]} 46. Kxe4 {[%emt 0:00:00]} Nd5 {[%emt 0:00:00]} 47. Kd3 {[%emt 0:00:00]} e2 {[%emt 0:00:00]} 48. Kxe2 {[%emt 0:00:00]} Kc4 {[%emt 0:00:00]} 49. Kf3 {[%emt 0:00:00]} Nxc3 {[%emt 0:00:00]} 50. Bd2 {[%emt 0:00:15]} Kd4 {[%emt 0:00:00]} 51. Bc1 {[%emt 0:01:32]} Nb5 {[%emt 0:00:00]} 52. Be3+ {[%emt 0:05:37]} Kd5 {[%emt 0:00:00]} 53. Bd2 {[%emt 0:00:23]} Nd6 {[%emt 0:02:26]} 54. Bb4 {[%emt 0:00:10]} Kc6 {[%emt 0:00:10]} 55. Ke3 {[%emt 0:00:54]} Kd5 {[%emt 0:00:02]} 56. Kf3 {[%emt 0:01:44]} Kc6 {[%emt 0:00:03]} 57. Ba5 {[%emt 0:00:33]} Nb7 {[%emt 0:00:06]} 58. Bc3 {[%emt 0:00:20]} Nd6 {[%emt 0:00:23]} 59. g5 {[%emt 0:01:31]} Nxf5 {[%emt 0:02:48]} 60. gxf6 {[%emt 0:02:00]} gxf6 {[%emt 0:00:04]} 61. Bxf6 {[%emt 0:00:16]} Kd5 {[%emt 0:00:13]} 62. Bc3 {[%emt 0:00:29]} Ke6 {[%emt 0:00:20]} 63. Be1 {[%emt 0:01:04] Ke5 Ke4+} 1/2-1/2